bitfinex-derivatives/quotes_BTCF0:USTF0_20250929
["timestamp","ask_amount","ask_price","bid_price","bid_amount"]
[1759169730156,0.15337371,114110.0,114100.0,0.82406633]
[1759169730353,0.15337371,114110.0,114100.0,0.42406633]
[1759169731452,0.50184703,114110.0,114100.0,0.42406633]
[1759169731654,0.50184703,114110.0,114100.0,0.43765072]
[1759169731854,0.50184703,114110.0,114100.0,0.44765072]
[1759169732554,0.15337371,114110.0,114100.0,0.42406633]
[1759169732755,0.15337371,114110.0,114100.0,0.44765825]
[1759169732955,0.95381371,114110.0,114100.0,0.44765825]
[1759169733160,0.95377371,114110.0,114100.0,0.86012505]
[1759169734062,0.95377371,114110.0,114100.0,0.77253965]
[1759169736260,0.95377371,114110.0,114100.0,0.86012505]
[1759169736560,0.95377371,114110.0,114100.0,0.77253965]
[1759169744172,0.95377371,114110.0,114100.0,0.86012505]
[1759169744368,0.95377371,114110.0,114100.0,0.77253965]
[1759169745566,0.15337371,114110.0,114100.0,0.77253965]
[1759169745768,1.30224703,114110.0,114100.0,0.42406633]
[1759169748074,0.50184703,114110.0,114100.0,0.42406633]
[1759169748378,1.30224703,114110.0,114100.0,0.42406633]
[1759169748872,1.30224703,114110.0,114100.0,0.51165163]
[1759169749071,1.30224703,114110.0,114100.0,0.42406633]
[1759169749874,0.95377371,114110.0,114100.0,0.42406633]
[1759169756074,0.95377371,114110.0,114100.0,0.51165163]
[1759169756778,0.95377371,114110.0,114100.0,0.55874613]
[1759169757179,0.95377371,114110.0,114100.0,0.47116083]
[1759169763386,0.15337371,114110.0,114100.0,0.90721945]
[1759169763683,0.95373371,114110.0,114100.0,0.90721945]
[1759169764486,0.95373371,114110.0,114100.0,0.55874613]
[1759169764686,0.95373371,114110.0,114100.0,0.90721945]
[1759169764886,0.98527199,114110.0,114100.0,0.88373038]
[1759169765487,0.95373371,114110.0,114100.0,0.88373038]
[1759169767187,0.15337371,114110.0,114100.0,0.88373038]
[1759169767390,0.95369371,114110.0,114100.0,0.88373038]
[1759169769687,0.15337371,114110.0,114100.0,0.88373038]
[1759169770283,0.15337371,114110.0,114100.0,0.87373038]
[1759169770483,0.15337371,114110.0,114100.0,0.88373038]
[1759169770679,0.06579571,114110.0,114100.0,0.86884115]
[1759169770886,0.06579571,114110.0,114100.0,2.07666115]
[1759169770887,0.03115571,114110.0,114100.0,2.07666115]
[1759169771186,0.03115571,114110.0,114100.0,2.09238436]
[1759169772191,0.11873181,114110.0,114100.0,2.09238436]
[1759169774785,0.11873181,114110.0,114100.0,2.10795343]
[1759169775387,0.11873181,114110.0,114100.0,2.04526482]
[1759169776292,0.11873181,114110.0,114100.0,2.39335096]
[1759169777397,0.03115571,114110.0,114100.0,2.39335096]
[1759169777894,0.11873141,114110.0,114100.0,2.39335096]
[1759169780197,0.11873141,114110.0,114100.0,2.45603957]
[1759169782594,0.03115571,114110.0,114100.0,2.45603957]
[1759169785298,0.03115571,114110.0,114100.0,2.8043193]
[1759169785503,0.03115571,114110.0,114100.0,2.45603957]
[1759169788797,0.10436589,114140.0,114130.0,0.0875613]
[1759169788994,0.12575589,114140.0,114130.0,2.00162995]
[1759169789307,0.12575589,114140.0,114130.0,1.68472248]
[1759169789506,0.13457613,114140.0,114130.0,1.68472248]
[1759169789706,0.12575589,114140.0,114130.0,1.68472248]
[1759169790006,0.15075589,114140.0,114130.0,1.68472248]
[1759169790199,0.12575589,114140.0,114130.0,1.68472248]
[1759169790401,0.14075589,114140.0,114130.0,1.68472248]
[1759169792004,0.14075589,114140.0,114130.0,1.33644275]
[1759169792204,0.14075589,114140.0,114130.0,1.68472248]
[1759169793206,0.14075589,114140.0,114130.0,1.33644275]
[1759169793400,0.14075589,114140.0,114130.0,1.68472248]
[1759169793606,0.55817248,114140.0,114130.0,1.68472248]
[1759169794817,0.55817248,114140.0,114130.0,1.65335022]
[1759169795107,0.55817248,114140.0,114130.0,1.68472248]
[1759169795412,0.20989275,114140.0,114130.0,1.68472248]
[1759169795805,0.55817248,114140.0,114130.0,1.68472248]
[1759169797300,0.55817248,114140.0,114130.0,1.66119329]
[1759169797500,0.55817248,114140.0,114130.0,1.59715912]
[1759169797907,0.55817248,114140.0,114130.0,1.65334746]
[1759169798104,0.55817248,114140.0,114130.0,1.68471972]
[1759169799105,0.55817248,114140.0,114130.0,1.66119259]
[1759169800612,0.55817248,114140.0,114130.0,1.57363199]
[1759169800810,1.30645221,114140.0,114130.0,0.38434752]
[1759169801116,0.1001906,114130.0,114120.0,1.19434752]
[1759169801414,0.44847033,114130.0,114120.0,1.19434752]
[1759169801809,0.44847033,114130.0,114120.0,1.54262725]
[1759169802116,0.46986033,114130.0,114120.0,0.75564725]
[1759169802317,0.47886033,114130.0,114120.0,0.39434752]
[1759169802815,0.47886033,114130.0,114120.0,0.41736752]
[1759169803216,0.47886033,114130.0,114120.0,0.76564725]
[1759169803416,0.47886033,114130.0,114120.0,0.41736752]
[1759169803718,0.47486033,114130.0,114120.0,0.41736752]
[1759169804922,0.47486033,114130.0,114120.0,0.38382]
[1759169806207,0.47486033,114130.0,114120.0,0.39382]
[1759169807113,0.1001982,114120.0,114110.0,0.38434752]
[1759169807414,0.1002136,114100.0,114090.0,1.31786498]
[1759169807607,0.44849333,114100.0,114090.0,1.92935951]
[1759169807811,0.44849333,114100.0,114090.0,1.89798725]
[1759169808011,0.44849333,114100.0,114090.0,0.76816752]
[1759169808012,0.46988333,114100.0,114090.0,0.76816752]
[1759169808217,0.47863769,114100.0,114090.0,1.11644725]
[1759169808411,0.47863769,114100.0,114090.0,1.21403935]
[1759169808614,0.47863769,114100.0,114090.0,1.19049183]
[1759169808917,0.47863769,114100.0,114090.0,1.19449183]
[1759169809311,0.47863769,114100.0,114090.0,0.8462121]
[1759169809913,0.47863769,114100.0,114090.0,0.75862]
[1759169810116,0.47863769,114100.0,114090.0,0.75462]
[1759169810315,1.63147742,114100.0,114090.0,0.7396]
[1759169810614,1.63147742,114100.0,114090.0,0.3788]
[1759169810615,2.03147742,114100.0,114090.0,0.3788]
[1759169811410,2.09993077,114100.0,114090.0,0.3788]
[1759169811613,2.09993077,114100.0,114090.0,0.40161]
[1759169812014,0.94709174,114100.0,114090.0,0.83748173]
[1759169812218,0.19005765,114100.0,114090.0,0.83748173]
[1759169812410,0.99453765,114100.0,114090.0,0.83748173]
[1759169813417,1.00328266,114100.0,114090.0,0.83748173]
[1759169813819,1.35156239,114100.0,114090.0,0.83748173]
[1759169814320,1.35156239,114100.0,114090.0,0.74988973]
[1759169814321,1.35168239,114100.0,114090.0,0.74988973]
[1759169815510,0.89536212,114100.0,114090.0,0.3788]
[1759169815713,2.09980212,114100.0,114090.0,0.3788]
[1759169816019,1.29536212,114100.0,114090.0,0.40161]
[1759169816220,2.09980212,114100.0,114090.0,0.40161]
[1759169817224,1.29536212,114100.0,114090.0,0.40161]
[1759169817522,2.09980212,114100.0,114090.0,0.40161]
[1759169818319,2.09980212,114100.0,114090.0,0.39161]
[1759169818718,1.29536212,114100.0,114090.0,0.40161]
[1759169818920,2.09964212,114100.0,114090.0,0.40161]
[1759169819122,1.75136239,114100.0,114090.0,0.40161]
[1759169819724,0.94708239,114100.0,114090.0,0.40161]
[1759169819925,1.75104239,114100.0,114090.0,0.40161]
[1759169820725,2.09932212,114100.0,114090.0,0.40161]
[1759169821620,1.29536212,114100.0,114090.0,0.40161]
[1759169821827,2.09912212,114100.0,114090.0,0.40161]
[1759169822327,1.29536212,114100.0,114090.0,0.3688]
[1759169822526,2.09904212,114100.0,114090.0,0.3788]
[1759169822728,1.29536212,114100.0,114090.0,0.3788]
[1759169822922,0.89536212,114100.0,114090.0,0.018]
[1759169823123,1.69948212,114100.0,114090.0,0.018]
[1759169823531,1.69944212,114100.0,114090.0,0.018]
[1759169824027,1.69952212,114100.0,114090.0,0.018]
[1759169824428,2.09952212,114100.0,114090.0,0.018]
[1759169826531,2.80860185,114100.0,114090.0,0.018]
[1759169826927,2.46032212,114100.0,114090.0,0.018]
[1759169827231,2.00444185,114100.0,114090.0,0.018]
[1759169827527,1.65616212,114100.0,114090.0,0.018]
[1759169827732,2.46004212,114100.0,114090.0,0.018]
[1759169829043,2.45984212,114100.0,114090.0,0.018]
[1759169829236,2.80812185,114100.0,114090.0,0.018]
[1759169829432,2.00444185,114100.0,114090.0,0.018]
[1759169829930,2.80812185,114100.0,114090.0,0.018]
[1759169830336,2.00444185,114100.0,114090.0,0.018]
[1759169830542,0.1218187,114080.0,114070.0,0.38369739]
[1759169830734,0.81837816,114080.0,114070.0,0.38369739]
[1759169831138,1.62213816,114080.0,114070.0,0.47130369]
[1759169831642,1.62213816,114080.0,114070.0,0.38369739]
[1759169831843,1.62213816,114080.0,114070.0,0.39869739]
[1759169832041,1.62213816,114080.0,114070.0,0.48630369]
[1759169832242,0.81837816,114080.0,114070.0,0.48630369]
[1759169832445,1.62213816,114080.0,114070.0,0.47530369]
[1759169832644,1.62213816,114080.0,114070.0,0.38769739]
[1759169833535,1.62213816,114080.0,114070.0,0.36488739]
[1759169833842,2.73121789,114080.0,114070.0,1e-08]
[1759169834039,0.1238517,114050.0,114040.0,0.38361]
[1759169834353,0.1238598,114040.0,114030.0,0.40601752]
[1759169834644,0.89052097,114040.0,114030.0,0.4701071]
[1759169834941,1.69468836,114040.0,114030.0,0.3608]
[1759169835333,1.69468836,114040.0,114020.0,0.3608]
[1759169835334,0.1238671,114030.0,114020.0,0.3608]
[1759169835539,0.81196206,114030.0,114020.0,0.0133637]
[1759169836246,0.81344426,114030.0,114020.0,0.0133637]
[1759169836439,1.26898343,114030.0,114020.0,0.3741637]
[1759169836838,1.27298343,114030.0,114020.0,0.3741637]
[1759169837036,0.46842343,114030.0,114020.0,0.38247]
[1759169837243,1.27286343,114030.0,114020.0,0.4701148]
[1759169837446,1.26890343,114030.0,114020.0,0.4701148]
[1759169837643,1.2777864,114030.0,114020.0,0.4701148]
[1759169837843,0.4733064,114030.0,114020.0,0.38247]
[1759169838043,1.27741542,114030.0,114020.0,0.4701149]
[1759169838245,1.27741542,114030.0,114020.0,0.38247]
[1759169838445,1.28341542,114030.0,114020.0,0.38247]
[1759169839146,1.29222964,114030.0,114020.0,0.38247]
[1759169841852,0.94320881,114030.0,114020.0,0.38247]
[1759169842053,1.29222964,114030.0,114020.0,0.38247]
[1759169842653,1.29222964,114030.0,114020.0,0.3608]
[1759169842949,1.64125047,114030.0,114020.0,0.3608]
[1759169843252,1.64125047,114030.0,114020.0,0.38326]
[1759169843646,1.29278964,114030.0,114020.0,0.38326]
[1759169843846,0.13876881,114030.0,114020.0,0.38326]
[1759169844147,1.29274964,114030.0,114020.0,0.38326]
[1759169845455,0.48778964,114030.0,114020.0,0.38326]
[1759169845752,1.29282964,114030.0,114020.0,0.4709058]
[1759169846252,1.29282964,114030.0,114020.0,0.38326]
[1759169847154,0.48778964,114030.0,114020.0,0.38326]
[1759169847456,1.28385542,114030.0,114020.0,0.4709058]
[1759169847750,1.29263976,114030.0,114020.0,0.4709058]
[1759169847952,1.29263976,114030.0,114020.0,0.38326]
[1759169850057,0.94361893,114030.0,114020.0,0.38326]
[1759169850357,1.29231976,114030.0,114020.0,0.38326]
[1759169851753,0.47897542,114030.0,114020.0,0.4709058]
[1759169851953,1.2921507,114030.0,114020.0,0.4709058]
[1759169852755,0.4875507,114030.0,114020.0,0.4709058]
[1759169852945,0.4875507,114030.0,114020.0,0.81992663]
[1759169852946,0.12995549,114030.0,114020.0,0.81992663]
[1759169853150,0.93431549,114030.0,114020.0,0.81992663]
[1759169853347,0.93431549,114030.0,114020.0,0.4709058]
[1759169853756,0.84675739,114030.0,114020.0,0.4709058]
[1759169854056,0.93439549,114030.0,114020.0,0.4709058]
[1759169854458,0.93439549,114030.0,114020.0,0.81992663]
[1759169854752,0.93439549,114030.0,114020.0,0.4709058]
[1759169854952,0.93431549,114030.0,114020.0,0.4709058]
[1759169855149,1.28333632,114030.0,114020.0,0.38326]
[1759169855755,1.63235715,114030.0,114020.0,0.3608]
[1759169856650,0.1227458,114020.0,114010.0,0.38326]
[1759169856958,0.47176663,114020.0,114010.0,0.3608]
[1759169857157,0.47176663,114020.0,114010.0,0.38326]
[1759169857550,0.47176663,114020.0,114010.0,0.4709135]
[1759169857951,0.1227458,114020.0,114010.0,0.4709135]
[1759169858147,0.47176663,114020.0,114010.0,0.4709135]
[1759169859160,0.47276663,114020.0,114010.0,0.4709135]
[1759169859661,1.27780663,114020.0,114010.0,0.4709135]
[1759169860358,0.38512083,114020.0,114010.0,0.4709135]
[1759169860660,0.82755,114020.0,114010.0,0.4798435]
[1759169861155,0.82755,114020.0,114010.0,0.82886433]
[1759169861456,0.82755,114020.0,114010.0,1.22886433]
[1759169861662,0.001,114020.0,114010.0,1.22886433]
[1759169861870,0.001,114020.0,114010.0,0.82886433]
[1759169863153,0.001,114020.0,114010.0,0.86023659]
[1759169863759,0.001,114020.0,114010.0,1.26023659]
[1759169863958,0.001,114020.0,114010.0,2.06523659]
[1759169864157,8.739e-05,114030.0,114020.0,0.46712663]
[1759169864358,8.739e-05,114030.0,114020.0,0.85929889]
[1759169864662,8.739e-05,114030.0,114020.0,0.88290129]
[1759169864865,8.739e-05,114030.0,114020.0,0.87498502]
[1759169865455,0.00508739,114030.0,114020.0,0.87498502]
[1759169865658,0.02663739,114030.0,114020.0,0.87498502]
[1759169865863,0.02463739,114030.0,114020.0,0.87498502]
[1759169866167,0.00308739,114030.0,114020.0,0.87498502]
[1759169866364,0.00308739,114030.0,114020.0,1.68010502]
[1759169868166,0.00308739,114030.0,114020.0,1.68864615]
[1759169868962,0.00308739,114030.0,114020.0,2.08864615]
[1759169869363,0.00308739,114030.0,114020.0,1.29955637]
[1759169869666,0.00308739,114030.0,114020.0,2.10419637]
[1759169870657,0.00308739,114030.0,114020.0,1.29955637]
[1759169870970,0.00308739,114030.0,114020.0,2.10423637]
[1759169871265,0.00308739,114030.0,114020.0,1.23686776]
[1759169871466,0.00308739,114030.0,114020.0,2.04178776]
[1759169871766,0.00308739,114030.0,114020.0,1.23686776]
[1759169872064,0.00308739,114030.0,114020.0,2.04170776]
[1759169872866,0.00308739,114030.0,114020.0,2.08883308]
[1759169878069,0.00308739,114030.0,114020.0,2.43785391]
[1759169878367,0.069682,114050.0,114040.0,0.46783123]
[1759169878574,0.1314666,114060.0,114050.0,0.1092227]
[1759169878771,0.1314666,114060.0,114050.0,0.4700227]
[1759169880572,0.1314666,114060.0,114050.0,0.49357151]
[1759169880773,0.1434666,114060.0,114050.0,0.49357151]
[1759169882070,0.21218927,114060.0,114050.0,0.49357151]
[1759169882277,0.20018927,114060.0,114050.0,0.49357151]
[1759169882577,0.22018927,114060.0,114050.0,0.49357151]
[1759169882773,0.21131317,114060.0,114050.0,0.49357151]
[1759169882974,0.21131317,114060.0,114050.0,0.84259234]
[1759169883173,0.21131317,114060.0,114050.0,0.49357151]
[1759169884577,0.21131317,114060.0,114050.0,0.84259234]
[1759169885677,0.21131317,114060.0,114050.0,0.49357151]
[1759169887172,0.02,114060.0,114050.0,0.85152234]
[1759169888073,0.04142,114060.0,114050.0,0.86020035]
[1759169889070,0.04142,114060.0,114050.0,0.89159876]
[1759169889777,0.02,114060.0,114050.0,0.86804995]
[1759169889972,0.02,114060.0,114050.0,0.91514757]
[1759169890977,0.02,114060.0,114050.0,1.31514757]
[1759169891675,0.02,114060.0,114050.0,2.11822757]
[1759169893378,0.02,114060.0,114050.0,1.31514757]
[1759169893580,0.02,114060.0,114050.0,2.11810757]
[1759169894582,0.12777182,114080.0,114070.0,0.1107374]
[1759169894776,0.12777182,114080.0,114070.0,0.4715374]
[1759169895681,0.1965106,114080.0,114070.0,0.4715374]
[1759169896176,0.20509668,114080.0,114070.0,0.4715374]
[1759169896381,0.20509668,114080.0,114070.0,0.38393]
[1759169896570,0.56811751,114080.0,114070.0,0.3608]
[1759169896772,0.96811751,114080.0,114070.0,0.3608]
[1759169897182,0.1236199,114070.0,114060.0,0.38393]
[1759169897375,0.47264073,114070.0,114060.0,0.38393]
[1759169897577,0.47264073,114070.0,114060.0,0.4715451]
[1759169898281,0.4723184,114070.0,114060.0,0.4715451]
[1759169898784,0.4723184,114070.0,114060.0,0.38393]
[1759169899583,0.4833184,114070.0,114060.0,0.38393]
[1759169900277,0.4723184,114070.0,114060.0,0.38393]
[1759169900478,0.4923184,114070.0,114060.0,0.38393]
[1759169900678,0.1436199,114070.0,114060.0,0.38393]
[1759169900880,0.4923184,114070.0,114060.0,0.38393]
[1759169904794,0.4923184,114070.0,114060.0,0.40747758]
[1759169905596,0.4923184,114070.0,114060.0,0.49509268]
[1759169905796,0.4923184,114070.0,114060.0,0.40747758]
[1759169906098,0.4923184,114070.0,114060.0,0.02354758]
[1759169906398,0.4923184,114070.0,114060.0,0.40577758]
[1759169907094,0.4923184,114070.0,114060.0,0.40580092]
[1759169907693,1.2954784,114070.0,114060.0,0.49341602]
[1759169908986,1.2951584,114070.0,114060.0,0.49341602]
[1759169909399,0.4923184,114070.0,114060.0,0.49341602]
[1759169909697,1.2951584,114070.0,114060.0,0.49341602]
[1759169910299,0.4923184,114070.0,114060.0,0.49341602]
[1759169910494,1.2950784,114070.0,114060.0,0.49341602]
[1759169911092,1.2950784,114070.0,114060.0,0.40580092]
[1759169911398,1.2950784,114070.0,114060.0,0.38437092]
[1759169912493,0.4923184,114070.0,114060.0,0.40580092]
[1759169912698,0.4923184,114070.0,114060.0,0.49341602]
[1759169912893,1.2947584,114070.0,114060.0,0.49341602]
[1759169913500,0.1436199,114070.0,114060.0,0.49341602]
[1759169913797,1.2947184,114070.0,114060.0,0.49341602]
[1759169914399,1.2947184,114070.0,114060.0,0.49766602]
[1759169915399,0.4923184,114070.0,114060.0,0.49766602]
[1759169915805,1.2945984,114070.0,114060.0,0.49766602]
[1759169916798,0.4923184,114070.0,114060.0,0.49766602]
[1759169916995,1.2945984,114070.0,114060.0,0.41005092]
[1759169917395,1.2944384,114070.0,114060.0,0.41005092]
[1759169917598,1.2944384,114070.0,114060.0,0.49766602]
[1759169919899,0.4923184,114070.0,114060.0,0.49766602]
[1759169920099,1.2941184,114070.0,114060.0,0.49766602]
[1759169921599,0.4923184,114070.0,114060.0,0.49766602]
[1759169921800,1.2940384,114070.0,114060.0,0.49766602]
[1759169922504,1.2940384,114070.0,114060.0,0.49768793]
[1759169922707,1.2939584,114070.0,114060.0,0.49768793]
[1759169923303,0.1436199,114070.0,114060.0,0.49768793]
[1759169923506,0.9451799,114070.0,114060.0,0.49768793]
[1759169923707,1.2938784,114070.0,114060.0,0.49768793]
[1759169923907,1.2938784,114070.0,114060.0,0.41007283]
[1759169925305,1.2938784,114070.0,114060.0,0.5290847]
[1759169926806,1.2938784,114070.0,114060.0,0.50549187]
[1759169927706,0.4923184,114070.0,114060.0,0.50549187]
[1759169927908,1.2938784,114070.0,114060.0,0.50549187]
[1759169928408,1.2938784,114070.0,114060.0,0.41787677]
[1759169928607,1.2938784,114070.0,114060.0,0.14469187]
[1759169928909,1.2938784,114070.0,114060.0,0.50549187]
[1759169932311,0.4923184,114070.0,114060.0,0.50549187]
[1759169932613,1.2938784,114070.0,114060.0,0.50549187]
[1759169932813,1.32541668,114070.0,114060.0,0.50549187]
[1759169935015,1.2938784,114070.0,114060.0,0.50549187]
[1759169936015,1.32541668,114070.0,114060.0,0.05707677]
[1759169936215,1.2938784,114070.0,114060.0,0.05707677]
[1759169936806,1.2938784,114070.0,114060.0,0.50549187]
[1759169937517,0.9451399,114070.0,114060.0,0.50549187]
[1759169937712,1.2938384,114070.0,114060.0,0.50549187]
[1759169938118,1.32537668,114070.0,114060.0,0.50549187]
[1759169938616,1.2938384,114070.0,114060.0,0.50549187]
[1759169939521,0.4923184,114070.0,114060.0,0.50549187]
[1759169939716,0.9451399,114070.0,114060.0,0.50549187]
[1759169939915,1.2938384,114070.0,114060.0,0.50549187]
[1759169940417,0.4923184,114070.0,114060.0,0.50549187]
[1759169940615,1.2938384,114070.0,114060.0,0.50549187]
[1759169942321,1.2938384,114070.0,114060.0,0.39644677]
[1759169942322,1.6938384,114070.0,114060.0,0.39644677]
[1759169942519,2.07407518,114070.0,114060.0,0.00425]
[1759169942721,2.08984433,114070.0,114060.0,0.00425]
[1759169943019,0.1242351,114060.0,114050.0,0.3608]
[1759169943216,0.85319978,114060.0,114050.0,0.3608]
[1759169943411,0.1242428,114050.0,114040.0,0.50249517]
[1759169943623,1.2744613,114050.0,114040.0,0.50249517]
[1759169944216,0.9257628,114050.0,114040.0,0.50249517]
[1759169944520,0.03662,114050.0,114040.0,0.85119367]
[1759169944822,0.86970768,114050.0,114040.0,0.8293769]
[1759169945222,0.9257628,114050.0,114040.0,0.8293769]
[1759169945814,1.2744613,114050.0,114040.0,0.8293769]
[1759169946321,1.2884613,114050.0,114040.0,0.8197969]
[1759169947121,1.2884613,114050.0,114040.0,0.4710984]
[1759169947621,1.2884613,114050.0,114040.0,0.3608]
[1759169947825,1.32002898,114050.0,114040.0,0.3608]
[1759169949229,0.1242504,114040.0,114030.0,0.4711016]
[1759169949528,0.8216474,114040.0,114030.0,0.4711016]
[1759169949722,1.23028573,114040.0,114030.0,0.3608]
[1759169949922,1.26185341,114040.0,114030.0,0.3608]
[1759169950721,1.33559999,114040.0,114030.0,0.3608]
[1759169951322,1.33559999,114040.0,114030.0,0.38347]
[1759169951524,1.33559999,114040.0,114030.0,0.4711081]
[1759169951928,2.13747999,114040.0,114030.0,0.4711081]
[1759169952433,2.13647999,114040.0,114030.0,0.4711081]
[1759169953126,2.10519231,114040.0,114030.0,0.4711081]
[1759169953432,2.10507231,114040.0,114030.0,0.4711081]
[1759169953632,2.10507231,114040.0,114030.0,0.4484381]
[1759169953833,2.10507231,114040.0,114030.0,0.4711081]
[1759169954533,1.30303231,114040.0,114030.0,0.4711081]
[1759169954733,2.10555231,114040.0,114030.0,0.4711081]
[1759169955430,2.10547231,114040.0,114030.0,0.4711081]
[1759169956231,2.10531231,114040.0,114030.0,0.4711081]
[1759169956931,1.30303231,114040.0,114030.0,0.4711081]
[1759169957131,2.10523231,114040.0,114030.0,0.4711081]
[1759169958342,1.75673688,114040.0,114030.0,0.4711081]
[1759169959339,1.40795531,114040.0,114030.0,0.4711081]
[1759169959638,1.75665688,114040.0,114030.0,0.4711081]
[1759169960435,1.75665688,114040.0,114030.0,0.38347]
[1759169961337,0.95453688,114040.0,114030.0,0.38347]
[1759169961539,0.95453688,114040.0,114030.0,0.4711081]
[1759169961732,1.75673688,114040.0,114030.0,0.4711081]
[1759169963739,1.75673688,114040.0,114030.0,0.38347]
[1759169965832,0.95453688,114040.0,114030.0,0.38347]
[1759169966038,1.75641688,114040.0,114030.0,0.4711081]
[1759169966843,1.75641688,114040.0,114030.0,0.38347]
[1759169972255,0.95453688,114040.0,114030.0,0.38347]
[1759169972549,1.75781688,114040.0,114030.0,0.38347]
[1759169977156,1.78938456,114040.0,114030.0,0.38347]
[1759169977456,0.98610456,114040.0,114030.0,0.38347]
[1759169977658,1.78890456,114040.0,114030.0,0.38347]
[1759169978751,1.78886456,114040.0,114030.0,0.38347]
[1759169979056,1.43984299,114040.0,114030.0,0.38347]
[1759169979358,1.78874456,114040.0,114030.0,0.38347]
[1759169979557,1.38874456,114040.0,114030.0,0.38347]
[1759169980756,0.58610456,114040.0,114030.0,0.38347]
[1759169980958,1.38906456,114040.0,114030.0,0.38347]
[1759169984758,0.58610456,114040.0,114030.0,0.38347]
[1759169984962,1.38870456,114040.0,114030.0,0.38347]
[1759169985461,1.38870456,114040.0,114030.0,0.3608]
[1759169986462,1.38870456,114040.0,114030.0,0.38194]
[1759169992257,0.58610456,114040.0,114030.0,0.38194]
[1759169992562,1.38790456,114040.0,114030.0,0.38194]
[1759169994655,1.39790456,114040.0,114030.0,0.38194]
[1759169994861,1.41364431,114040.0,114030.0,0.38194]
[1759169998164,1.44521851,114040.0,114030.0,0.38194]
[1759169999358,1.39791108,114040.0,114030.0,0.38194]
[1759170000463,0.59611108,114040.0,114030.0,0.38194]
[1759170000666,1.39791108,114040.0,114030.0,0.38194]
[1759170003566,0.59611108,114040.0,114030.0,0.38194]
[1759170003761,1.39791108,114040.0,114030.0,0.38194]
[1759170004461,1.39791108,114040.0,114030.0,0.02114]
[1759170004664,1.39791108,114040.0,114030.0,0.38194]
[1759170004861,1.36633688,114040.0,114030.0,0.38194]
[1759170007462,1.36633688,114040.0,114030.0,0.3608]
[1759170007664,1.36633688,114040.0,114030.0,0.38216]
[1759170010666,1.39791108,114040.0,114030.0,0.38216]
[1759170011770,0.1244481,114030.0,114020.0,0.54829779]
[1759170012467,0.9262081,114030.0,114020.0,0.54829779]
[1759170012661,0.1244481,114030.0,114020.0,0.54829779]
[1759170013272,0.9262081,114030.0,114020.0,0.90019936]
[1759170014074,0.9262081,114030.0,114020.0,0.89719936]
[1759170014273,0.9262081,114030.0,114020.0,0.89819936]
[1759170015375,0.03681,114030.0,114020.0,0.89819936]
[1759170015674,0.02285,114030.0,114020.0,0.90969936]
[1759170016169,0.99675018,114040.0,114030.0,0.1226281]
[1759170016372,0.99675018,114040.0,114030.0,0.86381887]
[1759170016865,0.09339658,114040.0,114030.0,0.86381887]
[1759170017071,0.18102698,114040.0,114030.0,0.91091649]
[1759170017573,0.18402698,114040.0,114030.0,0.91091649]
[1759170018277,0.18202698,114040.0,114030.0,0.86381887]
[1759170020275,0.18202698,114040.0,114030.0,0.86369021]
[1759170020472,0.18202698,114040.0,114030.0,1.26369021]
[1759170022779,0.18202698,114040.0,114030.0,0.9149173]
[1759170023080,0.18202698,114040.0,114030.0,1.26369021]
[1759170028084,0.54423989,114040.0,114030.0,0.4144692]
[1759170028279,0.8930128,114040.0,114030.0,0.76324211]
[1759170028478,0.8930128,114040.0,114030.0,0.4144692]
[1759170028677,0.8930128,114040.0,114030.0,0.38298]
[1759170029378,0.54423989,114040.0,114030.0,0.38298]
[1759170030381,0.94423989,114040.0,114030.0,0.03023007]
[1759170030572,0.1222258,114020.0,114010.0,0.43049762]
[1759170030777,0.81977162,114020.0,114010.0,0.3834]
[1759170031083,1.62141162,114020.0,114010.0,0.3834]
[1759170031383,1.64148554,114020.0,114010.0,0.3834]
[1759170031577,0.94393972,114020.0,114010.0,0.3834]
[1759170031776,1.64148554,114020.0,114010.0,0.3874]
[1759170031978,0.83984554,114020.0,114010.0,0.3874]
[1759170032178,0.14229972,114020.0,114010.0,0.73617291]
[1759170032379,0.94393972,114020.0,114010.0,0.73617291]
[1759170032580,1.29271263,114020.0,114010.0,0.74117291]
[1759170033878,0.49107263,114020.0,114010.0,0.74117291]
[1759170034181,1.29327263,114020.0,114010.0,0.74117291]
[1759170035171,1.29323263,114020.0,114010.0,0.82882641]
[1759170035777,1.29323263,114020.0,114010.0,0.74117291]
[1759170036377,1.29319263,114020.0,114010.0,0.82882641]
[1759170036681,1.29307263,114020.0,114010.0,0.82882641]
[1759170036882,1.29299263,114020.0,114010.0,0.74117291]
[1759170042587,1.29299263,114020.0,114010.0,0.82882641]
[1759170042881,0.49107263,114020.0,114010.0,0.82882641]
[1759170043092,1.29283263,114020.0,114010.0,0.82882641]
[1759170044482,1.29283263,114020.0,114010.0,0.3924]
[1759170044683,1.29283263,114020.0,114010.0,0.74117291]
[1759170045487,0.49107263,114020.0,114010.0,0.3924]
[1759170045689,0.49107263,114020.0,114010.0,0.74117291]
[1759170045883,1.29287263,114020.0,114010.0,0.74117291]
[1759170046989,0.49107263,114020.0,114010.0,0.82882641]
[1759170047390,1.29287263,114020.0,114010.0,0.82882641]
[1759170047691,0.49107263,114020.0,114010.0,0.82882641]
[1759170047996,1.29287263,114020.0,114010.0,0.82882641]
[1759170048287,1.29302557,114020.0,114010.0,0.82882641]
[1759170049691,0.49122557,114020.0,114010.0,0.82882641]
[1759170049884,1.29302557,114020.0,114010.0,0.82882641]
[1759170050086,0.14245266,114020.0,114010.0,0.82882641]
[1759170050294,1.27958895,114020.0,114010.0,0.83840641]
[1759170050786,0.1224958,114020.0,114010.0,0.83840641]
[1759170050990,1.27306871,114020.0,114010.0,0.83840641]
[1759170051192,1.29330096,114020.0,114010.0,0.83840641]
[1759170052392,0.49150096,114020.0,114010.0,0.83840641]
[1759170052689,1.29330096,114020.0,114010.0,0.83840641]
[1759170054190,0.94448805,114020.0,114010.0,0.83840641]
[1759170054492,1.29326096,114020.0,114010.0,0.83840641]
[1759170054888,0.12901805,114020.0,114010.0,0.83840641]
[1759170055080,1.27955096,114020.0,114010.0,0.83840641]
[1759170055484,1.29326096,114020.0,114010.0,0.83840641]
[1759170055887,1.29327319,114020.0,114010.0,0.82882641]
[1759170056090,0.94450028,114020.0,114010.0,0.82882641]
[1759170058585,0.14274028,114020.0,114010.0,0.82882641]
[1759170058888,0.10789028,114020.0,114010.0,0.83840641]
[1759170059095,0.10789028,114020.0,114010.0,1.64016641]
[1759170059392,0.13019028,114020.0,114010.0,1.64016641]
[1759170060490,0.13019028,114020.0,114010.0,1.68726403]
[1759170061292,0.13022604,114020.0,114010.0,0.88550403]
[1759170061494,0.13022604,114020.0,114010.0,1.64012641]
[1759170062992,0.13022604,114020.0,114010.0,1.63054641]
[1759170063394,0.14393604,114020.0,114010.0,1.63054641]
[1759170064685,0.14393604,114020.0,114010.0,0.82882641]
[1759170064896,0.14393604,114020.0,114010.0,1.63054641]
[1759170066695,0.14393604,114020.0,114010.0,0.82882641]
[1759170066895,0.14393604,114020.0,114010.0,1.63050641]